Cogmind - Beta 11 @@@ ROGUE MODE // 2022.03.28 @ 13:25:06 Player: ShuSh Result: Destroyed by Y-72 Warden with Railgun Performance ------------- Evolutions (7) 3500 Regions Visited (20) 4000 Robots Destroyed (189) 945 Value Destroyed (10523) 10523 Prototype IDs (9) 180 Alien Tech Used (0) 0 Bonus (7732) 7732 TOTAL SCORE: 26880 Bonus ------- High Alert Combat Kills 1149 Follower Combat Kills 1796 Entered Garrisons 1600 Used RIF Installer 4000 Friendly Fire -813 Cogmind --------- Core Integrity 0/1300 Matter 294/300 Energy 99/100 System Corruption 6% Temperature Cool (9) Movement Core (50) Location -3/Garrison Parts ------- > --- POWER (1) -------- (None) > --- PROPULSION (6) --- (None) > --- UTILITY (11) ----- Advanced Signal Interpreter Relay Coupler [Grunt] (21) > --- WEAPON (3) ------- (None) > --- INVENTORY (5) ---- Light Antimatter Reactor Myomer Leg Advanced Heat Sink Large Storage Unit Advanced Sensor Array Peak State ------------ > --- POWER ------------ Reinforced Fission Core > --- PROPULSION ------- Improved Treads Improved Treads Improved Medium Treads Improved Medium Treads Armored Medium Treads > --- UTILITY ---------- Advanced Heat Sink Advanced Heat Sink High-capacity Storage Unit Improved Heavy Armor Plating Relay Coupler [Swarmer] Relay Coupler [Grunt] Relay Coupler [Brawler] Relay Coupler [Sentry] Relay Coupler [Hunter] > --- WEAPON ----------- Wave Gun Variable Charge Gun Variable Charge Gun > --- INVENTORY -------- Improved Treads Matter Compressor Matter Compressor Advanced Sensor Array Recoil Nullifier Improved Weapon Cycler Relay Coupler [NC] Relay Coupler [Swarmer] Relay Coupler [Swarmer] Relay Coupler [Sentry] Relay Coupler [Hunter] Relay Coupler [Heavy] Advanced System Restoration Module Advanced System Restoration Module Variable Charge Gun Variable Charge Gun Neutron Cannon Heavy Rocket Launcher Improved Remote Datajack Improved Remote Datajack [Rating: 92] Favorites ----------- Power Improved Deuterium Engine Engine Improved Deuterium Engine Power Core Light Nuclear Core Reactor Light Antimatter Reactor Propulsion Improved Titanium Leg Treads Light Treads Leg Improved Titanium Leg Hover Unit Antigrav System Flight Unit VTOL Module Utility High-capacity Storage Unit Device Advanced Heat Sink Storage High-capacity Storage Unit Processor Targeting Computer Hackware Relay Coupler [Swarmer] Protection Layered Light Armor Plating Weapon Light Assault Rifle Energy Gun Heavy Laser Energy Cannon Heavy Particle Cannon Ballistic Gun Light Assault Rifle Ballistic Cannon Heavy Mass Driver Launcher Heavy Rocket Launcher Special Weapon Remote Datajack Slashing Weapon Segregator Build | -11 -10 -10 -10 -9 -8 -8 -7 -7 -7 -7 -6 -6 -5 -5 -5 -5 -4 -4 -3 -3 ------- Run | Scr Mat Min Exi Min Mat Gar Fac Gar Fac Gar Fac Gar Fac Gar Fac Gar Fac Gar Res Gar Slots Evolved 14 | . . . . . 4 . 2 . . . 2 . 2 . . . 2 . 2 . Power . | . . . . . . . . . . . . . . . . . . . . . Propulsion 4 | . . . . . 1 . 1 . . . . . 1 . . . . . 1 . Utility 9 | . . . . . 3 . 1 . . . 1 . 1 . . . 2 . 1 . Weapon 1 | . . . . . . . . . . . 1 . . . . . . . . . Parts Attached 367 | 2 8 2 . 7 18 28 14 19 12 21 20 21 52 24 18 20 9 49 22 1 Power 33 | . 1 . . 1 2 2 1 1 2 1 . 2 6 2 2 1 1 5 3 . Engine 15 | . 1 . . . 1 1 . 1 2 1 . 1 2 1 2 . . 2 . . Core 14 | . . . . 1 1 1 1 . . . . 1 3 1 . 1 1 3 . . Reactor 4 | . . . . . . . . . . . . . 1 . . . . . 3 . Propulsion 91 | 2 1 . . 3 6 15 5 1 2 2 6 3 14 4 5 5 . 11 5 1 Treads 29 | 2 1 . . 3 6 5 . . . . . . . . . 5 . 6 1 . Leg 56 | . . . . . . 10 5 1 2 2 6 3 14 4 5 . . . 4 . Wheel . | . . . . . . . . . . . . . . . . . . . . . Hover 1 | . . . . . . . . . . . . . . . . . . 1 . . Flight 5 | . . . . . . . . . . . . . . . . . . 4 . 1 Utility 107 | . 4 . . 1 7 7 5 7 3 6 6 9 11 10 2 4 6 12 7 . Device 24 | . . . . 1 . 1 3 . 1 1 1 . 3 5 . 2 3 1 2 . Storage 7 | . 2 . . . 1 . 1 . 1 . . . . . . . . . 2 . Processor 8 | . 1 . . . 3 . . . . . . . 1 . . . . . 3 . Hackware 44 | . . . . . 1 . 1 5 . 4 4 7 3 3 1 2 3 10 . . Protection 24 | . 1 . . . 2 6 . 2 1 1 1 2 4 2 1 . . 1 . . Artifact . | . . . . . . . . . . . . . . . . . . . . . Weapon 136 | . 2 2 . 2 3 4 3 10 5 12 8 7 21 8 9 10 2 21 7 . Energy Gun 39 | . . . . . . . 1 3 1 3 1 4 5 4 3 6 1 5 2 . Energy Cannon 22 | . . . . . . . 1 2 2 3 3 . 6 1 2 . . 2 . . Ballistic Gun 22 | . 1 2 . 2 2 4 . 1 . . . . 1 1 . . . 6 2 . Ballistic Cannon 2 | . . . . . 1 . . . . . . . . 1 . . . . . . Launcher 5 | . . . . . . . . 1 1 . . . 2 . . . . 1 . . Special Weapon 42 | . 1 . . . . . . 3 1 6 4 3 7 1 4 4 1 5 2 . Impact Weapon . | . . . . . . . . . . . . . . . . . . . . . Slashing Weapon 4 | . . . . . . . 1 . . . . . . . . . . 2 1 . Piercing Weapon . | . . . . . . . . . . . . . . . . . . . . . Special Melee Weapon . | . . . . . . . . . . . . . . . . . . . . . Unidentified Prototypes 5 | . . . . . 1 . 1 . . . . . 1 . 1 . . . 1 . Corrupted Parts 1 | . . . . . . . . . . . . . 1 . . . . . . . System Corruption 4 | . . . . . . . . . . . . . 4 . . . . . . . Parts Lost 103 | . . . . 3 5 12 . 3 . 1 2 1 16 3 1 . 1 33 18 4 Power 18 | . . . . 1 1 2 . . . . . 1 2 . 1 . 1 6 3 . Propulsion 33 | . . . . 1 2 7 . 1 . . . . 5 . . . . 12 5 . Utility 26 | . . . . 1 1 2 . . . 1 . . 5 2 . . . 6 4 4 Weapon 26 | . . . . . 1 1 . 2 . . 2 . 4 1 . . . 9 6 . Highest Loss Streak 19 | . . . . 2 3 5 . 1 . 1 2 1 14 1 1 . 1 19 14 4 To Critical Strikes 3 | . . . . . . 1 . . . . . . . . . . . . 2 . Average Slot Usage (%) 94 | . 96 100 100 99 93 96 97 99 100 98 95 98 96 98 98 94 93 63 56 26 Engine 4 | . 14 14 14 2 2 2 . 2 7 7 6 4 . 2 4 2 . . . . Core 2 | . . . . 11 5 3 7 4 . . . 1 3 1 . 2 4 3 . . Treads 9 | . 28 28 28 28 26 5 . . . . . . . . . 16 26 9 1 . Leg 16 | . . . . . . 20 30 29 30 29 25 26 26 29 29 12 . . 1 . Device 5 | . . . . 13 3 . 4 7 7 6 6 6 6 13 11 11 10 3 1 . Storage 8 | . 14 14 14 14 9 9 7 7 7 7 6 6 5 5 5 5 5 2 3 2 Processor 6 | . 2 . . . 22 27 18 12 . . . . . 4 . . . . 6 9 Hackware 10 | . . . . . . . 4 8 17 14 22 25 21 9 17 17 25 25 31 14 Protection 8 | . 7 14 14 . 5 8 7 8 12 14 7 6 9 9 9 5 5 2 1 . Energy Gun 5 | . . . . . . . . 3 4 6 9 15 10 7 12 15 14 5 1 . Energy Cannon 2 | . . . . . . . 4 7 7 6 5 2 2 6 2 . . . . . Ballistic Gun 9 | . 27 28 28 28 17 18 9 1 . . . . . 1 . . . 4 1 . Naked Turns . | . . . . . . . . . . . . . . . . . . . . . Heaviest Build 99 | 10 30 30 30 30 51 56 64 68 73 74 69 74 84 99 89 84 93 93 34 2 Greatest Support 133 | 40 40 40 40 40 69 69 80 80 75 75 80 75 92 95 95 133 133 133 60 3 Greatest Overweight (x) 10 | . 1 . . . 1 2 1 1 . 1 . . 2 1 1 1 . 2 10 . Average Overweight (x) . | . . . . . . . . . . . . . . . . . . . . . Largest Inventory Capacity 20 | 8 15 15 15 15 20 20 20 20 20 20 20 20 20 20 20 20 20 20 10 5 Average Capacity 18 | 8 11 15 15 15 19 20 20 20 20 20 20 20 20 20 20 20 20 11 8 5 Most Carried 20 | 6 14 15 15 15 20 20 20 20 20 20 20 20 20 20 20 20 20 20 10 5 Average Carried 17 | 6 9 14 14 14 16 19 19 19 19 19 19 19 18 18 19 19 17 10 6 5 Final Capacity 20 | 8 15 15 15 15 20 20 20 20 20 20 20 20 20 20 20 20 20 5 5 5 Final Carried 20 | 6 13 15 15 15 20 20 20 20 20 20 20 20 19 20 20 20 20 5 5 5 Class Distribution -------------------- 31% | Bothacker-Mutant 23% | Mutant 13% | Botlord-Tank 13% | Scavenger-Mutant 9% | Botlord-Mutant 5% | Bothacker-Tank Dominant Class ---------------- Mutant | -10/Materials Mutant | -10/Mines Mutant | -10/Exiles Scavenger-Mutant | -9/Mines Scavenger-Mutant | -8/Materials Scavenger-Mutant | -8/Garrison Bothacker-Mutant | -7/Factory Bothacker-Mutant | -7/Garrison Bothacker-Mutant | -7/Factory Bothacker-Mutant | -7/Garrison Bothacker-Tank | -6/Factory Botlord-Mutant | -6/Garrison Botlord-Mutant | -5/Factory Bothacker-Tank | -5/Garrison Botlord-Tank | -5/Factory Botlord-Tank | -5/Garrison Botlord-Tank | -4/Factory Bothacker-Mutant | -4/Garrison Botlord-Mutant | -3/Research Mutant | -3/Garrison Resources | -11 -10 -10 -10 -9 -8 -8 -7 -7 -7 -7 -6 -6 -5 -5 -5 -5 -4 -4 -3 -3 ----------- Run | Scr Mat Min Exi Min Mat Gar Fac Gar Fac Gar Fac Gar Fac Gar Fac Gar Fac Gar Res Gar Matter Collected 5722 | 224 166 24 26 106 273 795 . 509 199 270 299 335 609 361 196 296 147 547 340 . Remotely . | . . . . . . . . . . . . . . . . . . . . . Salvage Created 7530 | 97 424 68 40 110 471 1094 . 673 89 249 480 657 835 977 341 331 99 154 341 . Parts 372 | 4 33 8 2 13 33 53 . 33 6 9 18 18 52 33 17 14 1 10 15 . Haulers Intercepted 1 | . 1 . . . . . . . . . . . . . . . . . . . Recyclers Shooed 3 | . . . . . . . . . . . 1 . . . 1 . . . 1 . Parts Field Recycled . | . . . . . . . . . . . . . . . . . . . . . Retrieved Matter . | . . . . . . . . . . . . . . . . . . . . . Parts Self-Destructed . | . . . . . . . . . . . . . . . . . . . . . Prevented . | . . . . . . . . . . . . . . . . . . . . . Kills | -11 -10 -10 -10 -9 -8 -8 -7 -7 -7 -7 -6 -6 -5 -5 -5 -5 -4 -4 -3 -3 ------- Run | Scr Mat Min Exi Min Mat Gar Fac Gar Fac Gar Fac Gar Fac Gar Fac Gar Fac Gar Res Gar Combat Hostiles Destroyed 177 | . 11 5 . 8 14 26 . 18 3 5 11 14 18 19 6 4 2 7 6 . Melee 1 | . . . . . . . . . . . . . . . . . . 1 . . Guns 139 | . 11 5 . 8 14 26 . 10 . 4 9 12 9 8 5 4 2 6 6 . Cannons 22 | . . . . . . . . 4 1 1 1 2 2 10 1 . . . . . AOE 12 | . . . . . . . . 3 2 . . . 6 1 . . . . . . Classes Destroyed 17 | 1 3 . . . 2 . . 2 1 1 . . 4 . . . 1 2 . . Worker 4 | . . . . . . . . . . . . . 4 . . . . . . . Builder 1 | . . . . . . . . . . . . . 1 . . . . . . . Hauler 1 | . 1 . . . . . . . . . . . . . . . . . . . Recycler 1 | 1 . . . . . . . . . . . . . . . . . . . . Watcher 1 | . . . . . . . . . 1 . . . . . . . . . . . Swarmer 66 | . 3 5 . 8 8 4 . 8 2 1 1 9 8 3 2 . . 2 2 . Saboteur 3 | . . . . . . . . . . . . . . . . . . 3 . . Grunt 64 | . 8 . . . . 17 . 4 1 . 4 7 4 14 2 1 1 . 1 . Brawler 4 | . . . . . . . . . . 1 2 . . 1 . . . . . . Duelist 3 | . . . . . . . . 1 . 2 . . . . . . . . . . Sentry 15 | . . . . . 5 3 . 4 . 1 . . . . . 2 . . . . Demolisher 1 | . . . . . . . . . . . . . . . . . 1 . . . Specialist 3 | . . . . . . . . . . . . . 3 . . . . . . . Hunter 9 | . . . . . 1 2 . . . . . . 1 1 . 2 . 1 1 . Programmer 10 | . . . . . . . . 1 . . 4 . . . 3 . . . 2 . Heavy 2 | . . . . . . . . . . . . . 2 . . . . . . . Behemoth 1 | . . . . . . . . . . . . . . . . . . 1 . . Best Kill Streak 12 | 1 4 3 . 4 3 3 . 6 2 2 2 6 12 6 2 2 1 3 2 . Combat Bots Only 8 | . 4 3 . 4 3 3 . 6 2 2 2 6 8 6 2 2 1 3 2 . Max Kills in Single Turn 8 | 1 1 1 . 2 1 1 . 2 2 1 2 2 8 1 1 1 1 3 1 . Gunslinging 1 | . . . . 1 . . . . . . . 1 . . . . . . . . Exploded 4 | . . . . . . . . 2 2 . . . 4 1 . . . . . . Melee 1 | . . . . . . . . . . . . . . . . . . 1 . . Uniques/NPCs Destroyed . | . . . . . . . . . . . . . . . . . . . . . Combat | -11 -10 -10 -10 -9 -8 -8 -7 -7 -7 -7 -6 -6 -5 -5 -5 -5 -4 -4 -3 -3 -------- Run | Scr Mat Min Exi Min Mat Gar Fac Gar Fac Gar Fac Gar Fac Gar Fac Gar Fac Gar Res Gar Damage Taken 19121 | . 520 59 . 442 981 2348 . 1186 172 366 765 589 2924 1174 295 238 651 3451 2286 674 Core 3703 | . 169 6 . 32 140 338 . 99 10 26 41 76 280 112 44 80 . 943 769 538 Absorbed by Shields 928 | . . . . . . 29 . 85 . 11 . . . 529 . . . 156 . 118 Redirected to Shielding 428 | . . . . . 9 273 . 8 . . . . 93 . . . . 24 21 . Regen/Repaired (Parts) 389 | . . . . . . . . . . . 53 . 97 . 239 . . . . . Core Remaining (%) 51 | 100 . . . 17 . 13 . . . 80 . 86 . . . 48 . 18 . . Volleys Fired 656 | 2 43 7 8 24 60 124 . 47 20 26 40 38 49 44 22 20 11 42 29 . Largest 3 | 2 2 2 2 2 2 2 . 2 2 2 3 3 3 3 3 3 3 3 2 . Hottest 246 | 40 40 40 40 40 40 53 . 150 155 160 218 240 245 234 228 231 231 246 111 . Shots Fired 1299 | 4 86 14 16 48 120 245 . 77 23 37 75 69 107 118 46 49 31 82 52 . Gun 989 | 4 86 14 16 48 120 245 . 38 2 11 36 43 55 64 29 43 30 56 49 . Cannon 182 | . . . . . . . . 30 7 13 21 8 32 52 8 1 . 10 . . Launcher 8 | . . . . . . . . 2 1 . . . 3 . . . . 2 . . Special 120 | . . . . . . . . 7 13 13 18 18 17 2 9 5 1 14 3 . Kinetic 611 | 4 86 14 16 48 120 245 . 17 . . . . 2 15 . . . 19 25 . Thermal 560 | . . . . . . . . 51 9 24 57 51 85 101 37 44 30 47 24 . Explosive 8 | . . . . . . . . 2 1 . . . 3 . . . . 2 . . Electromagnetic . | . . . . . . . . . . . . . . . . . . . . . Robot Hit Streak 25 | 3 17 4 17 7 14 18 . 16 3 25 14 16 11 12 9 18 10 7 7 . Robot Miss Streak 8 | . 5 4 . 6 5 8 . 4 6 2 3 4 3 3 3 2 2 5 4 . Penetration Max 1 | . . . . . . . . 1 . . . . . . . . . . . . Secondary Targets 15 | . 2 1 . 1 1 3 . 1 . . . 4 . 1 . 1 . . . . Max Gunslinging Chain 1 | . 1 1 . 1 1 1 . 1 . . . 1 . 1 . 1 . . . . Shots Hit Robots 893 | 3 54 8 15 30 77 185 . 56 11 31 57 48 77 83 25 34 19 45 35 . Core Hits 431 | 2 28 7 4 14 38 76 . 32 8 15 27 29 50 40 12 16 8 13 12 . Critical Kills 4 | . 1 . . . . 1 . . . . 1 . . . . . . . 1 . Critical Parts Destroyed 4 | . 1 . . . . 2 . . . . . . . . . . . . 1 . Critical Strikes 25 | . 2 . . . . 3 . . . . 1 4 2 4 3 1 . . 5 . Burn 15 | . . . . . . . . . . . . 4 2 2 3 1 . . 3 . Meltdown 1 | . . . . . . . . . . . 1 . . . . . . . . . Destroy 7 | . 2 . . . . 3 . . . . . . . . . . . . 2 . Blast 2 | . . . . . . . . . . . . . . 2 . . . . . . Melee Attacks 9 | . . . . . . . 1 . . . . . . . . . . 4 4 . Thermal 8 | . . . . . . . . . . . . . . . . . . 4 4 . Impact . | . . . . . . . . . . . . . . . . . . . . . Slashing 1 | . . . . . . . 1 . . . . . . . . . . . . . Piercing . | . . . . . . . . . . . . . . . . . . . . . Sneak Attacks . | . . . . . . . . . . . . . . . . . . . . . Combat Hostiles . | . . . . . . . . . . . . . . . . . . . . . Follow-up Attacks . | . . . . . . . . . . . . . . . . . . . . . Damage Inflicted 15491 | 24 475 72 84 237 617 2005 . 1365 291 502 1073 783 2216 2316 498 685 386 1125 737 . Guns 10226 | 24 470 72 84 237 617 2005 . 657 16 250 707 583 765 948 384 685 386 599 737 . Cannons 3707 | . . . . . . . . 500 152 252 337 200 609 1314 114 . . 229 . . Explosions 1513 | . . . . . . . . 208 123 . . . 842 43 . . . 297 . . Melee . | . . . . . . . . . . . . . . . . . . . . . Ramming 45 | . 5 . . . . . . . . . 29 . . 11 . . . . . . Kinetic 4683 | 24 470 72 84 237 617 2005 . 280 . . . . 15 345 . . . 225 309 . Thermal 9293 | . . . . . . . . 877 168 502 1044 783 1359 1960 498 685 386 603 428 . Explosive 1470 | . . . . . . . . 208 123 . . . 842 . . . . 297 . . Electromagnetic . | . . . . . . . . . . . . . . . . . . . . . Impact . | . . . . . . . . . . . . . . . . . . . . . Slashing . | . . . . . . . . . . . . . . . . . . . . . Piercing . | . . . . . . . . . . . . . . . . . . . . . Highest Corruption 13 | . . . . . 1 1 . . . . 3 3 7 7 13 13 . 2 3 6 Average Corruption 4 | . . . . . 1 1 . . . . 2 3 5 7 10 13 . 2 2 4 Corruption Purged . | . . . . . . . . . . . . . . . . . . . . . Corruption Blocked . | . . . . . . . . . . . . . . . . . . . . . Effects 125 | . . . . . 2 18 . . . . 5 19 5 27 19 23 . 1 6 . Message Errors 25 | . . . . . . 3 . . . . 2 3 . 7 6 2 . . 2 . Matter Fused 35 | . . . . . 1 6 . . . . 1 7 2 6 1 7 . 1 3 . Heat Flow Errors 9 | . . . . . . . . . . . 1 . . 3 3 2 . . . . Energy Discharges 14 | . . . . . . 3 . . . . . 3 1 3 3 1 . . . . Parts Rejected 1 | . . . . . . 1 . . . . . . . . . . . . . . Data Loss (minor) 17 | . . . . . 1 2 . . . . . 3 2 3 1 4 . . 1 . Data Loss (major) 8 | . . . . . . 2 . . . . . 3 . 1 1 1 . . . . Misfires 9 | . . . . . . 1 . . . . 1 . . 1 1 5 . . . . Alerts 3 | . . . . . . . . . . . . . . . 2 1 . . . . Weapon Failures 4 | . . . . . . . . . . . . . . 3 1 . . . . . Overload Shots . | . . . . . . . . . . . . . . . . . . . . . Overflow Damage 192 | . . . . . . . . 50 . . . 18 90 18 1 . . 15 . . Projectiles 98 | . . . . . . . . 22 . . . 18 24 18 1 . . 15 . . Explosions 94 | . . . . . . . . 28 . . . . 66 . . . . . . . Melee . | . . . . . . . . . . . . . . . . . . . . . Knockbacks . | . . . . . . . . . . . . . . . . . . . . . Impact . | . . . . . . . . . . . . . . . . . . . . . Kinetic . | . . . . . . . . . . . . . . . . . . . . . Secondary . | . . . . . . . . . . . . . . . . . . . . . Self-Inflicted Damage 119 | . 5 . . . . . . 40 . . . . . 57 . . . 17 . . Shots 3 | . . . . . . . . 1 . . . . . 1 . . . 1 . . Rammed 1 | . . . . . . . . . . . . . . . . . . . 1 . Targets Rammed 4 | . . . . . . . . . . . 2 . . 1 . . . . 1 . Kicked 3 | . . . . . . . . . . . 2 . . 1 . . . . . . Crushed . | . . . . . . . . . . . . . . . . . . . . . Highest Temperature 440 | . 27 12 12 12 6 15 . 132 36 120 154 260 440 344 350 294 389 410 115 . Average Temperature 75 | . 8 5 6 5 3 4 . 30 17 45 54 93 105 135 85 79 105 165 29 . Received Heat Transfer 3161 | . 183 9 . 27 126 856 . 325 36 42 168 78 159 493 54 36 193 156 168 52 Effects 14 | . . . . . . . . . . . . . 1 5 3 . . 5 . . Energy Bleed 3 | . . . . . . . . . . . . . 1 1 . . . 1 . . Interference 9 | . . . . . . . . . . . . . . 4 3 . . 2 . . Matter Decay 2 | . . . . . . . . . . . . . . . . . . 2 . . Siege Activations . | . . . . . . . . . . . . . . . . . . . . . Robots Corrupted . | . . . . . . . . . . . . . . . . . . . . . Combat Hostiles . | . . . . . . . . . . . . . . . . . . . . . Parts Fried . | . . . . . . . . . . . . . . . . . . . . . Impact Corruptions . | . . . . . . . . . . . . . . . . . . . . . Robots Melted 3 | . . . . . . . . 1 . . 1 . 1 . . . . . . . Combat Hostiles 3 | . . . . . . . . 1 . . 1 . 1 . . . . . . . Parts Melted 37 | . . . . . . . . 2 . 2 1 5 14 1 4 1 1 . 6 . Heat Transferred 16114 | . . . . . . . . 1562 272 958 1963 2080 3156 1927 888 1199 666 592 851 . Parts Sabotaged 4 | . . . . . . . . . . . . . . . . . . 4 . . Parts Stolen . | . . . . . . . . . . . . . . . . . . . . . Parts Stripped . | . . . . . . . . . . . . . . . . . . . . . Power Chain Reactions 1 | . . . . . . . . . . . . . . 1 . . . . . . Missiles Intercepted . | . . . . . . . . . . . . . . . . . . . . . Alert | -11 -10 -10 -10 -9 -8 -8 -7 -7 -7 -7 -6 -6 -5 -5 -5 -5 -4 -4 -3 -3 ------- Run | Scr Mat Min Exi Min Mat Gar Fac Gar Fac Gar Fac Gar Fac Gar Fac Gar Fac Gar Res Gar Peak Influence 1004 | 5 233 83 . 90 295 898 480 844 725 714 653 1004 557 798 666 455 238 281 67 25 Initial 527 | . 3 . . . 35 143 471 196 443 315 374 457 527 245 418 357 238 155 18 25 Average 409 | 2 63 45 . 49 145 579 424 600 583 610 519 814 327 514 488 410 212 121 33 14 Maximum Alert Level 3 | . 1 . . . 1 3 2 3 3 3 2 3 2 3 2 2 1 1 . . Low Security (%) 28 | 100 88 100 . 100 52 8 . 3 . . . . 19 . . . 44 73 100 100 Level 1 17 | . 11 . . . 47 13 25 15 . 14 26 . 43 39 . 23 55 26 . . Level 2 36 | . . . . . . 43 74 44 88 32 73 35 37 44 100 76 . . . . Level 3 17 | . . . . . . 35 . 36 11 53 . 64 . 16 . . . . . . Level 4 . | . . . . . . . . . . . . . . . . . . . . . Level 5 . | . . . . . . . . . . . . . . . . . . . . . High Security . | . . . . . . . . . . . . . . . . . . . . . Max Security . | . . . . . . . . . . . . . . . . . . . . . Squads Dispatched 29 | . 2 . . . 4 . 1 . 1 . 8 . 7 . 1 . 2 . 3 . Investigation 2 | . . . . . 1 . . . . . 1 . . . . . . . . . Extermination 6 | . . . . . . . 1 . 1 . 2 . . . 1 . . . 1 . Reinforcement 11 | . 2 . . . . . . . . . . . 7 . . . . . 2 . Assault 2 | . . . . . . . . . . . 2 . . . . . . . . . Garrison 8 | . . . . . 3 . . . . . 3 . . . . . 2 . . . Intercept . | . . . . . . . . . . . . . . . . . . . . . Searches Triggered . | . . . . . . . . . . . . . . . . . . . . . Construction Impeded 1 | . . . . . . . . . . . . . . . . . . . 1 . Haulers Reinforced 2 | . . . . . . . . . . . . . 2 . . . . . . . Active Scanning Responses . | . . . . . . . . . . . . . . . . . . . . . Cargo Convoy Interrupts . | . . . . . . . . . . . . . . . . . . . . . Alert ID Control Effect 20 | . . . . . . . . . . . . . . . 5 6 2 2 4 1 Stealth | -11 -10 -10 -10 -9 -8 -8 -7 -7 -7 -7 -6 -6 -5 -5 -5 -5 -4 -4 -3 -3 --------- Run | Scr Mat Min Exi Min Mat Gar Fac Gar Fac Gar Fac Gar Fac Gar Fac Gar Fac Gar Res Gar Distress Signals 14 | . 2 . . . 4 . . . . . . . 5 1 . . . . 2 . Communications Jammed . | . . . . . . . . . . . . . . . . . . . . . Distress Signals . | . . . . . . . . . . . . . . . . . . . . . Times Spotted 426 | . 20 7 . 13 34 28 1 28 12 21 43 28 48 24 20 18 6 37 19 19 Peak Tracking Total 15 | . 4 3 . 4 10 7 1 5 2 6 9 8 13 9 4 7 4 6 7 15 Tactical Retreats 20 | . . 2 . . 3 2 . . . 3 . 2 1 1 . . . 4 1 1 Traps | -11 -10 -10 -10 -9 -8 -8 -7 -7 -7 -7 -6 -6 -5 -5 -5 -5 -4 -4 -3 -3 ------- Run | Scr Mat Min Exi Min Mat Gar Fac Gar Fac Gar Fac Gar Fac Gar Fac Gar Fac Gar Res Gar Traps Triggered 35 | . 3 . . . 2 7 . 3 . 6 1 3 . 2 1 1 . 5 . 1 Indirectly . | . . . . . . . . . . . . . . . . . . . . . Trap Hack Attempts . | . . . . . . . . . . . . . . . . . . . . . Triggered . | . . . . . . . . . . . . . . . . . . . . . Disarmed . | . . . . . . . . . . . . . . . . . . . . . Reprogrammed . | . . . . . . . . . . . . . . . . . . . . . Reused . | . . . . . . . . . . . . . . . . . . . . . Traps Extracted . | . . . . . . . . . . . . . . . . . . . . . Installed . | . . . . . . . . . . . . . . . . . . . . . Triggered . | . . . . . . . . . . . . . . . . . . . . . Machines | -11 -10 -10 -10 -9 -8 -8 -7 -7 -7 -7 -6 -6 -5 -5 -5 -5 -4 -4 -3 -3 ---------- Run | Scr Mat Min Exi Min Mat Gar Fac Gar Fac Gar Fac Gar Fac Gar Fac Gar Fac Gar Res Gar Machines Disabled 22 | . . . . . . 2 . 4 1 2 2 2 1 2 2 2 . 2 . . Max in Single Turn 1 | . . . . . . 1 . 1 1 1 1 1 1 1 1 1 . 1 . . Garrison Relay 17 | . . . . . . 2 . 4 . 2 . 3 . 2 . 2 . 2 . . Machines Sabotaged . | . . . . . . . . . . . . . . . . . . . . . Garrisons Compromised . | . . . . . . . . . . . . . . . . . . . . . Overloaded Fab Kills . | . . . . . . . . . . . . . . . . . . . . . Hacking | -11 -10 -10 -10 -9 -8 -8 -7 -7 -7 -7 -6 -6 -5 -5 -5 -5 -4 -4 -3 -3 --------- Run | Scr Mat Min Exi Min Mat Gar Fac Gar Fac Gar Fac Gar Fac Gar Fac Gar Fac Gar Res Gar Machines Accessed 48 | . 8 1 4 . 1 . 4 . 7 . 6 . 4 . 8 . 2 . 3 . Terminals 23 | . 6 1 . . . . 2 . 3 . 3 . 2 . 3 . 1 . 2 . Fabricators 4 | . . . . . . . . . 2 . 1 . . . 1 . . . . . Repair Stations 6 | . 1 . . . . . . . 1 . 1 . 1 . 2 . . . . . Recycling Units 1 | . 1 . . . . . . . . . . . . . . . . . . . Scanalyzers 2 | . . . . . . . 1 . . . . . . . 1 . . . . . Garrison Access 8 | . . . . . 1 . 1 . 1 . 1 . 1 . 1 . 1 . 1 . Total Hacks 153 | . 22 2 36 . 2 . 16 . 17 . 14 . 11 . 25 . 3 . 5 . Successful 102 | . 9 . 36 . 1 . 13 . 7 . 6 . 9 . 17 . 1 . 3 . Failed 50 | . 12 2 . . 1 . 3 . 10 . 8 . 2 . 8 . 2 . 2 . Catastrophic 5 | . . . . . . . . . 1 . 1 . . . 1 . 1 . 1 . Database Lockouts 1 | . 1 . . . . . . . . . . . . . . . . . . . Manual 48 | . 10 2 . . . . 2 . 12 . 9 . 5 . 7 . . . 1 . Terminals 63 | . 17 2 . . . . 6 . 11 . 7 . 7 . 7 . 2 . 4 . Fabricators 6 | . . . . . . . . . 3 . 2 . . . 1 . . . . . Repair Stations 13 | . 2 . . . . . . . 1 . 4 . 3 . 3 . . . . . Recycling Units 3 | . 3 . . . . . . . . . . . . . . . . . . . Scanalyzers 21 | . . . . . . . 9 . . . . . . . 12 . . . . . Garrison Access 11 | . . . . . 2 . 1 . 2 . 1 . 1 . 2 . 1 . 1 . Terminal Hacks 50 | . 6 . 36 . . . 3 . 1 . . . 2 . . . . . 2 . Record 36 | . . . 36 . . . . . . . . . . . . . . . . . Robot Analysis 2 | . 1 . . . . . . . 1 . . . . . . . . . . . Unreport Threat 1 | . 1 . . . . . . . . . . . . . . . . . . . Locate Traps 5 | . 2 . . . . . 1 . . . . . 1 . . . . . 1 . Hauler Manifests 1 | . . . . . . . 1 . . . . . . . . . . . . . Zone Layout 5 | . 2 . . . . . 1 . . . . . 1 . . . . . 1 . Fabricator Hacks . | . . . . . . . . . . . . . . . . . . . . . Repair Station Hacks 8 | . . . . . . . . . . . 3 . 3 . 2 . . . . . Scan Component 5 | . . . . . . . . . . . 2 . 2 . 1 . . . . . Repair 3 | . . . . . . . . . . . 1 . 1 . 1 . . . . . Recycling Unit Hacks 1 | . 1 . . . . . . . . . . . . . . . . . . . Retrieve Components 1 | . 1 . . . . . . . . . . . . . . . . . . . Scanalyzer 19 | . . . . . . . 8 . . . . . . . 11 . . . . . Insert Component 9 | . . . . . . . 4 . . . . . . . 5 . . . . . Analyze 10 | . . . . . . . 4 . . . . . . . 6 . . . . . Garrison Access Hacks 9 | . . . . . 1 . 1 . 1 . 1 . 1 . 2 . 1 . 1 . Unlock Access 8 | . . . . . 1 . 1 . 1 . 1 . 1 . 1 . 1 . 1 . Coupler Status 1 | . . . . . . . . . . . . . . . 1 . . . . . Unauthorized Hacks 15 | . 2 . . . . . 1 . 5 . 2 . 3 . 2 . . . . . Terminals 12 | . 2 . . . . . 1 . 3 . 1 . 3 . 2 . . . . . Track 1 | . . . . . . . . . . . . . 1 . . . . . . . Botnet 9 | . 2 . . . . . 1 . 2 . . . 2 . 2 . . . . . Operators 2 | . . . . . . . . . 1 . 1 . . . . . . . . . Fabricators 2 | . . . . . . . . . 1 . 1 . . . . . . . . . Fabnet 2 | . . . . . . . . . 1 . 1 . . . . . . . . . Repair Stations . | . . . . . . . . . . . . . . . . . . . . . Recycling Units . | . . . . . . . . . . . . . . . . . . . . . Scanalyzers . | . . . . . . . . . . . . . . . . . . . . . Garrison Access 1 | . . . . . . . . . 1 . . . . . . . . . . . Watchers 1 | . . . . . . . . . 1 . . . . . . . . . . . Data Cores Recovered . | . . . . . . . . . . . . . . . . . . . . . Used . | . . . . . . . . . . . . . . . . . . . . . Hacking Detections 39 | . 8 1 . . 1 . 3 . 7 . 5 . 4 . 7 . 2 . 1 . Full Trace Events . | . . . . . . . . . . . . . . . . . . . . . Feedback Events . | . . . . . . . . . . . . . . . . . . . . . Feedback Blocked . | . . . . . . . . . . . . . . . . . . . . . Robot Schematics Acquired . | . . . . . . . . . . . . . . . . . . . . . Robots Built . | . . . . . . . . . . . . . . . . . . . . . Authchips . | . . . . . . . . . . . . . . . . . . . . . Time . | . . . . . . . . . . . . . . . . . . . . . Total Robot Build Rating . | . . . . . . . . . . . . . . . . . . . . . Part Schematics Acquired 8 | . . . . . . . 3 . . . . . . . 5 . . . . . Parts Built . | . . . . . . . . . . . . . . . . . . . . . Authchips . | . . . . . . . . . . . . . . . . . . . . . Time . | . . . . . . . . . . . . . . . . . . . . . Total Part Build Rating . | . . . . . . . . . . . . . . . . . . . . . Parts Repaired 3 | . . . . . . . . . . . 1 . 1 . 1 . . . . . Time 105 | . . . . . . . . . . . 61 . 19 . 25 . . . . . Parts Recycled . | . . . . . . . . . . . . . . . . . . . . . Recycled Matter . | . . . . . . . . . . . . . . . . . . . . . Retrieved Matter . | . . . . . . . . . . . . . . . . . . . . . Retrieved Components 5 | . 5 . . . . . . . . . . . . . . . . . . . Parts Scanalyzed 8 | . . . . . . . 3 . . . . . . . 5 . . . . . Part Schematics Acquired 8 | . . . . . . . 3 . . . . . . . 5 . . . . . Parts Damaged 1 | . . . . . . . 1 . . . . . . . . . . . . . Bothacking | -11 -10 -10 -10 -9 -8 -8 -7 -7 -7 -7 -6 -6 -5 -5 -5 -5 -4 -4 -3 -3 ------------ Run | Scr Mat Min Exi Min Mat Gar Fac Gar Fac Gar Fac Gar Fac Gar Fac Gar Fac Gar Res Gar Used RIF Installer 8 | . . . . . . 1 . 1 . 1 . 1 . 1 . 1 . 1 . 1 Command Fork 1 | . . . . . . . . 1 . . . . . . . . . . . . Threat Obfuscator 1 | . . . . . . . . . . . . . . . . 1 . . . . Zone Cloak 1 | . . . . . . . . . . 1 . . . . . . . . . . Robot Detection 1 | . . . . . . . . . . . . . . . . . . . . 1 Alert ID Control 1 | . . . . . . . . . . . . . . 1 . . . . . . Structural Interface 1 | . . . . . . . . . . . . 1 . . . . . . . . Autooverride 1 | . . . . . . . . . . . . . . . . . . 1 . . Robots Hacked 90 | . . . . . . . . 6 3 9 12 13 14 1 6 7 1 11 6 1 Non-combat 8 | . . . . . . . . . 1 . 2 . 4 . . . . . 1 . Combat 82 | . . . . . . . . 6 2 9 10 13 10 1 6 7 1 11 5 1 Autooverrided 5 | . . . . . . . . . . . . . . . . . . 1 3 1 Robot Hacks Applied 85 | . . . . . . . . 6 4 9 13 11 15 1 6 5 1 11 3 . parse_system 3 | . . . . . . . . 1 1 . . . . . . . . 1 . . no_distress 1 | . . . . . . . . . . . 1 . . . . . . . . . map_walls 1 | . . . . . . . . . . . . . . . . . . . 1 . drop_inventory 1 | . . . . . . . . . . . . . 1 . . . . . . . purge_threat 3 | . . . . . . . . . . . . . 3 . . . . . . . map_route 4 | . . . . . . . . . 1 . 1 . 2 . . . . . . . find_garrison 3 | . . . . . . . . . 1 . . . 1 . 1 . . . . . disrupt_area 3 | . . . . . . . . . . . 1 1 1 . . . . . . . overload_power 1 | . . . . . . . . . . . . . 1 . . . . . . . amplify_resonance 14 | . . . . . . . . 1 . 2 4 . 1 . 1 2 . 3 . . reboot_system 4 | . . . . . . . . . . 1 2 1 . . . . . . . . go_dormant 1 | . . . . . . . . . . 1 . . . . . . . . . . overwrite_iff 27 | . . . . . . . . 2 . 2 3 6 3 1 1 . . 7 2 . streamctrl_high 4 | . . . . . . . . . . 1 . . 1 . . 1 1 . . . formatsys_high 15 | . . . . . . . . 2 1 2 1 3 1 . 3 2 . . . . Relay Couplers Released 76 | . . . . . . 9 . 17 . 8 4 15 . 8 . 8 . 7 . . Machine Destruction 72 | . . . . . . 9 . 17 . 8 . 15 . 8 . 8 . 7 . . Programmers 4 | . . . . . . . . . . . 4 . . . . . . . . . Attached 41 | . . . . . . . 1 5 . 4 4 7 2 3 1 2 2 10 . . Fabnet Peak Effective % 4 | . . . . . . . . . . . 3 3 4 4 4 4 1 1 . . Autooverrided 8 | . . . . . . . . . . . . 2 2 . 1 2 . 1 . . Robots Rewired . | . . . . . . . . . . . . . . . . . . . . . Allies Hacked 2 | . . . . . . . . . . . 1 . . . . . . . 1 . Hacks Repelled . | . . . . . . . . . . . . . . . . . . . . . Allies | -11 -10 -10 -10 -9 -8 -8 -7 -7 -7 -7 -6 -6 -5 -5 -5 -5 -4 -4 -3 -3 -------- Run | Scr Mat Min Exi Min Mat Gar Fac Gar Fac Gar Fac Gar Fac Gar Fac Gar Fac Gar Res Gar Total Allies 60 | . . 1 . . . . . 4 1 5 4 11 7 1 6 5 1 8 5 1 Largest Group 5 | . . 1 1 . . . . 2 3 2 3 4 2 1 3 5 2 2 2 1 Highest-Rated Group 245 | . . 31 31 . . . . 60 92 58 92 90 96 41 147 245 98 112 94 30 Highest-Rated Ally 58 | . . 31 31 . . . . 30 32 32 47 32 49 41 54 49 49 56 58 30 Total Orders 4 | . . . . . . . . . 2 . . . . . . 2 . . . . STAY 2 | . . . . . . . . . 1 . . . . . . 1 . . . . FOLLOW 2 | . . . . . . . . . 1 . . . . . . 1 . . . . Ally Attacks 292 | . . 10 . . . . . 10 25 29 29 50 31 3 14 35 11 25 16 4 Total Damage 7317 | . . 145 . . . . . 64 614 663 600 920 1226 112 335 1200 407 608 355 68 Kills 61 | . . . . . . . . . 8 8 7 6 10 1 6 6 2 2 4 1 Allies Corrupted 1 | . . . . . . . . . . . 1 . . . . . . . . . Allies Melted 1 | . . . . . . . . . . . . . . . . . . . 1 . Intel | -11 -10 -10 -10 -9 -8 -8 -7 -7 -7 -7 -6 -6 -5 -5 -5 -5 -4 -4 -3 -3 ------- Run | Scr Mat Min Exi Min Mat Gar Fac Gar Fac Gar Fac Gar Fac Gar Fac Gar Fac Gar Res Gar Robot Analysis Total 2 | . 1 . . . . . . . 1 . . . . . . . . . . . Derelict Logs Recovered 2 | . . 1 . 1 . . . . . . . . . . . . . . . . Drone Launches . | . . . . . . . . . . . . . . . . . . . . . Drone Recoveries . | . . . . . . . . . . . . . . . . . . . . . Exploration | -11 -10 -10 -10 -9 -8 -8 -7 -7 -7 -7 -6 -6 -5 -5 -5 -5 -4 -4 -3 -3 ------------- Run | Scr Mat Min Exi Min Mat Gar Fac Gar Fac Gar Fac Gar Fac Gar Fac Gar Fac Gar Res Gar Turns Passed 15845 | 29 1221 608 745 703 907 2060 537 1138 845 1042 737 1162 835 761 529 668 214 705 352 47 Spaces Moved 9015 | 14 665 358 452 367 396 860 342 738 588 646 418 771 437 408 286 345 99 529 220 76 Core 371 | . . . . . . . . . . . . . . . . . . 149 146 76 Treads 2864 | 14 665 358 452 367 396 147 . . . . . . . . . 203 99 106 57 . Legs 5506 | . . . . . . 713 342 738 588 646 418 771 437 408 286 142 . . 17 . Wheels . | . . . . . . . . . . . . . . . . . . . . . Hover 4 | . . . . . . . . . . . . . . . . . . 4 . . Flight 270 | . . . . . . . . . . . . . . . . . . 270 . . Fastest Speed 26 | 160 160 160 160 160 160 160 125 127 127 125 122 122 108 108 96 96 162 26 50 50 Average Speed 138 | 160 160 160 160 160 160 185 145 128 127 126 123 123 129 129 137 146 162 82 89 50 Slowest Speed 550 | 160 240 160 160 160 240 260 192 200 127 196 125 125 260 186 182 182 162 243 550 50 Overloaded Moves . | . . . . . . . . . . . . . . . . . . . . . Propulsion Burnouts . | . . . . . . . . . . . . . . . . . . . . . Robots Hopped . | . . . . . . . . . . . . . . . . . . . . . Cave-ins Triggered . | . . . . . . . . . . . . . . . . . . . . . Exploration Rate (%) 43 | 2 95 75 92 60 38 63 9 80 18 64 11 77 17 52 13 50 3 68 7 19 Regions Visited 20 Branch Regions 3 Pre-discovered Areas 3 | . . 1 1 1 . . . . . . . . . . . . . . . . Known Exits Taken 8 | . . . . . 1 . 1 . 1 . 1 . 1 . 1 . 1 . 1 . Unknown Exits Taken 5 | 1 1 1 1 1 . . . . . . . . . . . . . . . . Scrap Searched 1 | . . . . 1 . . . . . . . . . . . . . . . . Spaces Dug 14 | . . . . . . . 1 . 13 . . . . . . . . . . . Terrain Destroyed 125 | . . . . . . . 1 38 13 . . . 42 16 3 . 3 9 . . Melee 1 | . . . . . . . 1 . . . . . . . . . . . . . Projectile 18 | . . . . . . . . . . . . . 2 9 3 . 3 1 . . AOE 106 | . . . . . . . . 38 13 . . . 40 7 . . . 8 . . Terrain Rammed 1 | . 1 . . . . . . . . . . . . . . . . . . . Walls Destroyed . | . . . . . . . . . . . . . . . . . . . . . Machines Disabled . | . . . . . . . . . . . . . . . . . . . . . Actions | -11 -10 -10 -10 -9 -8 -8 -7 -7 -7 -7 -6 -6 -5 -5 -5 -5 -4 -4 -3 -3 --------- Run | Scr Mat Min Exi Min Mat Gar Fac Gar Fac Gar Fac Gar Fac Gar Fac Gar Fac Gar Res Gar Total 11299 | 17 753 382 462 449 573 1114 384 852 674 834 577 926 621 547 391 482 131 724 322 84 Wait 687 | . 15 14 . 37 74 32 1 11 39 101 82 64 56 27 35 58 8 7 26 . Move 9002 | 13 664 357 451 366 396 858 342 737 588 645 418 770 437 407 286 344 99 528 220 76 Hop . | . . . . . . . . . . . . . . . . . . . . . Pick Up 192 | . 13 1 1 7 13 22 10 16 5 4 6 9 15 15 11 17 3 13 11 . Fast Attach 95 | . 1 . . . 8 10 4 2 . 4 3 5 9 6 4 5 1 19 13 1 Attach 98 | . 2 . . 3 6 9 3 6 3 2 4 7 16 7 . 1 3 17 9 . Detach 10 | . 1 . . . 2 . . . . . . . . 1 1 . 1 2 2 . Swap 175 | 2 5 2 . 4 4 9 7 11 9 15 13 9 27 11 15 14 5 13 . . Drop 200 | . 8 1 1 8 10 22 16 13 10 7 9 9 12 18 17 23 . 9 7 . Fire 656 | 2 43 7 8 24 60 124 . 47 20 26 40 38 49 44 22 20 11 42 29 . Melee 9 | . . . . . . . 1 . . . . . . . . . . 4 4 . Ram 1 | . 1 . . . . . . . . . . . . . . . . . . . Kick 3 | . . . . . . . . . . . 2 . . 1 . . . . . . Crush 1 | . . . . . . . . . . . . . . . . . . . 1 . Escape Stasis 169 | . . . . . . 28 . 9 . 30 . 15 . 10 . . . 70 . 7 Rewire 1 | . . . 1 . . . . . . . . . . . . . . . . . Trap . | . . . . . . . . . . . . . . . . . . . . . Miscellaneous . | . . . . . . . . . . . . . . . . . . . . . Route ------- -11/Scrapyard -10/Materials (discovered 5 exits: [*Mat x3] / *Min x2) -10/Mines (discovered 3 exits: [*Mat x2] / *Exi) -10/Exiles (discovered 2 exits: [*Min x2]) -9/Mines -8/Materials -8/Garrison (discovered 3 exits: *Fac x3) -7/Factory (discovered 2 exits: *Fac / Gar) -7/Garrison (discovered 2 exits: *Fac x2) -7/Factory -7/Garrison (discovered 2 exits: *Fac x2) -6/Factory -6/Garrison (discovered 2 exits: *Fac x2) -5/Factory -5/Garrison -5/Factory -5/Garrison -4/Factory -4/Garrison -3/Research -3/Garrison History --------- Turn | Location | Event 4 | -11/Scrapyard | Discovered new exit (range 3) 30 | -11/Scrapyard | Entered Materials 149 | -10/Materials | Discovered new exit (range 14) 250 | -10/Materials | Discovered new exit (range 10) 316 | -10/Materials | Build established: Mutant 408 | -10/Materials | Discovered new exit (range 10) 681 | -10/Materials | Central database locked down 738 | -10/Materials | Core integrity fell below 50% 1038 | -10/Materials | Discovered new exit (range 6) 1070 | -10/Materials | Discovered new exit (range 3) 1251 | -10/Materials | Entered Mines 1392 | -10/Mines | Learned Materials stockpile data 1444 | -10/Mines | Discovered new exit (range 8) 1450 | -10/Mines | Escorted by a lone wolf Derelict 1470 | -10/Mines | Learned location of Storage (-8) 1556 | -10/Mines | Deemed a non-threat by the Exiles lab entrance 1556 | -10/Mines | Discovered new exit (range 5) 1692 | -10/Mines | Discovered new exit (range 10) 1859 | -10/Mines | Entered Exiles 1859 | -10/Exiles | Found Exiles lab destroyed 1859 | -10/Exiles | Accompanied by 1 ally 1883 | -10/Exiles | Discovered new exit (range 14) 2251 | -10/Exiles | Learned location of Zion (-6) 2590 | -10/Exiles | Discovered new exit (range 10) 2604 | -10/Exiles | Entered Mines 2607 | -9/Mines | Met a Derelict bent on vengeance 2672 | -9/Mines | Discovered new exit (range 7) 2735 | -9/Mines | Joined a pair of Derelicts in attacking an 0b10 outpost 3053 | -9/Mines | Build established: Scavenger-Mutant 3201 | -9/Mines | Core integrity fell below 20% 3307 | -9/Mines | Entered Materials 3307 | -8/Materials | Evolved 4 slots: Propulsion x1, Utility x3 3850 | -8/Materials | Lost 3 parts (2n1w) 3861 | -8/Materials | Garrison activated, responded to threat 4114 | -8/Materials | Garrison activated, responded to threat 4178 | -8/Materials | Build established: Mutant 4214 | -8/Materials | Identified exit to Garrison 4214 | -8/Materials | Entered Garrison 4454 | -8/Garrison | Spotted B-75 Beast 4454 | -8/Garrison | Spotted B-75 Beast 4584 | -8/Garrison | Core integrity fell below 50% 4652 | -8/Garrison | Lost 5 parts (3n1u1w) 4802 | -8/Garrison | Triggered checkpoint 4952 | -8/Garrison | Build established: Scavenger-Mutant 5004 | -8/Garrison | Discovered new exit (range 14) 5158 | -8/Garrison | Discovered new exit (range 10) 5212 | -8/Garrison | Triggered checkpoint 5301 | -8/Garrison | Discovered new exit (range 13) 5335 | -8/Garrison | Installed Relay Interface Framework 5470 | -8/Garrison | Triggered checkpoint 5549 | -8/Garrison | Garrison Relay disabled 5744 | -8/Garrison | Triggered checkpoint 5766 | -8/Garrison | Core integrity fell below 20% 5815 | -8/Garrison | Garrison Relay disabled 5849 | -8/Garrison | Build established: Bothacker-Mutant 6000 | -8/Garrison | Triggered checkpoint 6274 | -8/Garrison | Entered Factory 6274 | -7/Factory | Evolved 2 slots: Propulsion x1, Utility x1 6645 | -7/Factory | Discovered new exit (range 5) 6811 | -7/Factory | Identified exit to Garrison 6811 | -7/Factory | Entered Garrison 6836 | -7/Garrison | Triggered checkpoint 6854 | -7/Garrison | Garrison Relay disabled 6931 | -7/Garrison | Triggered checkpoint 7085 | -7/Garrison | Discovered new exit (range 13) 7150 | -7/Garrison | Triggered checkpoint 7292 | -7/Garrison | Triggered checkpoint 7305 | -7/Garrison | Discovered new exit (range 15) 7332 | -7/Garrison | Expanded RIF knowledge: Command Fork 7384 | -7/Garrison | Triggered checkpoint 7411 | -7/Garrison | Garrison Relay disabled 7508 | -7/Garrison | Triggered checkpoint 7539 | -7/Garrison | Garrison Relay disabled 7616 | -7/Garrison | Triggered checkpoint 7688 | -7/Garrison | Triggered checkpoint 7699 | -7/Garrison | Garrison Relay disabled 7949 | -7/Garrison | Entered Factory 7949 | -7/Factory | Accompanied by 2 allies 8794 | -7/Factory | Identified exit to Garrison 8794 | -7/Factory | Entered Garrison 8794 | -7/Garrison | Accompanied by 2 allies 8846 | -7/Garrison | Triggered checkpoint 8871 | -7/Garrison | Garrison Relay disabled 8990 | -7/Garrison | Triggered checkpoint 9176 | -7/Garrison | Discovered new exit (range 12) 9199 | -7/Garrison | Expanded RIF knowledge: Zone Cloak 9250 | -7/Garrison | Triggered checkpoint 9283 | -7/Garrison | Garrison Relay disabled 9388 | -7/Garrison | Discovered new exit (range 10) 9460 | -7/Garrison | Triggered checkpoint 9836 | -7/Garrison | Entered Factory 9836 | -6/Factory | Accompanied by 2 allies 9836 | -6/Factory | Evolved 2 slots: Utility x1, Weapon x1 10023 | -6/Factory | Repaired Broken Remote Datajack 10041 | -6/Factory | Garrison activated, responded to threat 10186 | -6/Factory | First assault squad dispatched 10573 | -6/Factory | Identified exit to Garrison 10573 | -6/Factory | Entered Garrison 10580 | -6/Garrison | Expanded RIF knowledge: Structural Interface 10628 | -6/Garrison | Triggered checkpoint 10732 | -6/Garrison | Triggered checkpoint 10742 | -6/Garrison | Garrison Relay disabled 10920 | -6/Garrison | Discovered new exit (range 15) 11020 | -6/Garrison | Triggered checkpoint 11039 | -6/Garrison | Build established: Botlord-Tank 11057 | -6/Garrison | Discovered new exit (range 11) 11186 | -6/Garrison | Triggered checkpoint 11201 | -6/Garrison | Garrison Relay disabled 11306 | -6/Garrison | Triggered checkpoint 11382 | -6/Garrison | Garrison Relay disabled 11677 | -6/Garrison | Build established: Botlord-Mutant 11735 | -6/Garrison | Entered Factory 11735 | -5/Factory | Accompanied by 1 ally 11735 | -5/Factory | Evolved 2 slots: Propulsion x1, Utility x1 12112 | -5/Factory | Repaired Carbon-fiber Leg 12311 | -5/Factory | Local machine network offline 12415 | -5/Factory | Destroyed 8 combat bots 12441 | -5/Factory | Lost 14 parts (2p5n4u3w) 12570 | -5/Factory | Identified exit to Garrison 12570 | -5/Factory | Entered Garrison 12866 | -5/Garrison | Triggered checkpoint 12901 | -5/Garrison | Garrison Relay disabled 13102 | -5/Garrison | Triggered checkpoint 13144 | -5/Garrison | Discovered new exit (range 15) 13168 | -5/Garrison | Expanded RIF knowledge: Alert ID Control 13206 | -5/Garrison | Triggered checkpoint 13266 | -5/Garrison | Garrison Relay disabled 13331 | -5/Garrison | Entered Factory 13542 | -5/Factory | System corruption reached 10% 13816 | -5/Factory | Repaired Imp. Heavy Armor Plating 13860 | -5/Factory | Identified exit to Garrison 13860 | -5/Factory | Entered Garrison 13860 | -5/Garrison | Accompanied by 3 allies 13870 | -5/Garrison | Expanded RIF knowledge: Threat Obfuscation 13928 | -5/Garrison | Garrison Relay disabled 13948 | -5/Garrison | Triggered checkpoint 14078 | -5/Garrison | Triggered checkpoint 14082 | -5/Garrison | Spotted B-75 Beast 14101 | -5/Garrison | Allies destroyed B-75 Beast 14126 | -5/Garrison | Triggered checkpoint 14145 | -5/Garrison | Triggered checkpoint 14201 | -5/Garrison | Build established: Botlord-Tank 14359 | -5/Garrison | Triggered checkpoint 14361 | -5/Garrison | Discovered new exit (range 14) 14440 | -5/Garrison | Triggered checkpoint 14441 | -5/Garrison | Core integrity fell below 50% 14444 | -5/Garrison | Garrison Relay disabled 14528 | -5/Garrison | Entered Factory 14528 | -4/Factory | Accompanied by 2 allies 14528 | -4/Factory | Evolved 2 slots: Utility x2 14578 | -4/Factory | Garrison activated, responded to threat 14742 | -4/Factory | Identified exit to Garrison 14742 | -4/Factory | Entered Garrison 14751 | -4/Garrison | Expanded RIF knowledge: Autooverride 14792 | -4/Garrison | Triggered checkpoint 14835 | -4/Garrison | Garrison Relay disabled 14910 | -4/Garrison | Spotted B-86 Titan 14948 | -4/Garrison | Triggered checkpoint 14952 | -4/Garrison | Triggered checkpoint 15056 | -4/Garrison | Lost 19 parts (1p6n5u7w) 15077 | -4/Garrison | Core integrity fell below 50% 15145 | -4/Garrison | Destroyed B-86 Titan 15255 | -4/Garrison | Discovered new exit (range 10) 15265 | -4/Garrison | Garrison Relay disabled 15274 | -4/Garrison | Triggered checkpoint 15324 | -4/Garrison | Triggered checkpoint 15355 | -4/Garrison | Triggered checkpoint 15381 | -4/Garrison | Lost 4 parts (2p1n1w) 15416 | -4/Garrison | Triggered checkpoint 15435 | -4/Garrison | Core integrity fell below 20% 15447 | -4/Garrison | Entered Research 15447 | -3/Research | Evolved 2 slots: Propulsion x1, Utility x1 15462 | -3/Research | Lost 7 parts (2p3n1u1w) 15683 | -3/Research | Build established: Botlord-Mutant 15768 | -3/Research | Core integrity fell below 50% 15794 | -3/Research | Lost 14 parts (3p4n3u4w) 15799 | -3/Research | Identified exit to Garrison 15799 | -3/Research | Entered Garrison 15802 | -3/Garrison | Expanded RIF knowledge: Robot Detection 15828 | -3/Garrison | Spotted B-86 Titan 15830 | -3/Garrison | Core integrity fell below 20% 15846 | -3/Garrison | Destroyed by Y-72 Warden with Railgun Last Messages --------------- 15837_ Field strength at 94. 15838_ Field strength at 88. 15839_ Field strength at 76. 15839_ S-43 Plague destroyed. 15839_ Slug penetrates C-35 Carver. 15839_ C-35 Carver destroyed. 15840_ Field strength at 70. 15841_ Field strength at 64. 15841_ Penetrated by Slug. 15841_ Slug penetrates Wall. 15842_ Field strength at 36. 15843_ Field strength at 30. 15843_ Slug penetrates C-35 Carver. 15843_ C-35 Carver destroyed. 15844_ Field strength at 16. 15844_ Slug penetrates Wall. 15845_ Stasis field depleted. 15845_ RIF reveals location of phase wall. 15845_ Adv. Target Analyzer destroyed. 15846_ Penetrated by Slug. Map ----- +----------------------------------------------------+ | ?????????# # # #####++####//####??????????????? | | ?????????# ######???#! #???????????????????????? | | ?????????## ##????????# #???????????????????????? | | ?????????#" "#????????# #???????????????????????? | | ?????????#" "#????????#g #?????#?????????????????? | | ?????????#" "#????????# %#### #!!!#?????????????? | | ?????????#"""#????????# /+ + +?????????????? | | ?????????#####????????#*%+ + #?????????????? | | ??????????????????????#]=#######!!!#?????????????? | | ??????????????????????# #???????????????????????? | | ??????????????????????# #???????????????????????? | | ??????????????????????# #???????????????????????? | | ??????????????????????# #???????????????????????? | | ??????????????????????# #???????????????????????? | | ??????????????????????# #???????????????????????? | | ????????????????????### ###?????????????????????? | | ????????????????????? + + #?????????????????????? | | ??????????????????????#= ###?????????????????????? | | ??????????????????????#Y=#???????????????????????? | | ????????????????????###*%###?????????????????????? | | ????????????????????# +Y=+ #?????????????????????? | | ????????????????????###sY###?????????????????????? | | ??????????????????????#/ #???????????????????????? | | ???????????????????####/c####????????????????????? | | ???????????????????#]]]%*]w]#????????????????????? | | ???????????????????# ! @ #????????????????????? | | ??????????????????# +???????????????????? | | ??????????????????## ##???????????????????? | | ???????????????????#!!! !!!#????????????????????? | | ???????????????????####!!####????????????????????? | | ??????????????????????###????????????????????????? | | ?????????????????????????????????????????????????? | | | | | | | | | | | | | | | | | | | | | | | | | | | | | | | | | | | | | +----------------------------------------------------+ Best States ------------- Heat Dissipation 117 Energy Generation 21 Energy Capacity 310 Matter Stores 300 Matter Capacity 800 Sight Range 16 Robot Scan Range 16 Terrain Scan Density 10 Armor Coverage 600 Power Shielding 66 Propulsion Shielding 33 Utility Shielding 66 Weapon Shielding 66 Weapon Cycling 20 Evasion (%) 64 Targeting Accuracy 5 Melee Accuracy 6 Target Analysis 8 Core Analysis 6 Armor Integrity Analysis 30 Recoil Reduction 5 Offensive Hacking 10 Defensive Hacking 10 Relay Coupler Types 7 Relay Coupler Value 230 Item Schematics ----------------- Imp. Utility Shielding | -7/Factory | Scanalyzed Imp. Titanium Leg | -7/Factory | Scanalyzed Lyr. Light Armor Plating | -7/Factory | Scanalyzed Imp. Remote Datajack | -5/Factory | Scanalyzed Adv. Sensor Array | -5/Factory | Scanalyzed Imp. Heavy Armor Plating | -5/Factory | Scanalyzed Rnf. Fission Core | -5/Factory | Scanalyzed Arm. Medium Treads | -5/Factory | Scanalyzed Robot Schematics ------------------ None Fabricated ------------ Nothing Alien Tech Used ----------------- None Achievements -------------- None Challenges ------------ None Game ------ Seed PhysicsTransdimensionalPick Manual? 0 Play Time 04:21:30 Cumulative 200.2 hours Start 2022.03.27 @ 23:28:45 End 2022.03.28 @ 13:25:06 Sessions 5 Manual Loads 0 Difficulty Rogue Special Mode None Game No. 85 Rogue 80 Adventurer 5 Explorer 0 Win Type - Total 8 Types 6/0/1/1/0/0/0/0/0 Lore% 69 Gallery% 78 Achievement% 63 Wizard Run 0 Options --------- ASCII 0 Keyboard 0 Movement Numpad Keybinds 0 Fullscreen 2 Font 18/Terminus Map View 76x50 Tactical HUD 1 Map Filters NONE Filters NONE Steam 0 RUN: 65b5209b-a077-4599-b5d5-42c56a7a9f78